[Event "5th EKA IIFL Investment 2019"]
[Site "Mumbai"]
[Date "2020.01.03"]
[Round "5.36"]
[White "Eraschenkov, Denis"]
[Black "Aradhya, Garg"]
[Result "1-0"]
[ECO "B35"]
[WhiteElo "2386"]
[BlackElo "2197"]
[Annotator "ChessBase"]
[PlyCount "125"]
[EventDate "2019.12.30"]
[EventType "swiss"]
[EventCountry "IND"]
[SourceTitle "playchess.com"]
[Source "ChessBase"]
[SourceQuality "1"]
[TimeControl "40/5400+30:1800+30"]

1. e4 {[%emt 0:00:00]} c5 {[%emt 0:00:00]} 2. Nf3 {[%emt 0:00:00]} Nc6 {[%emt 0:00:00]} 3. Nc3 {[%emt 0:00:29]} g6 {[%emt 0:00:00]} 4. d4 {[%emt 0:00:06]} cxd4 {[%emt 0:00:00]} 5. Nxd4 {[%emt 0:00:04]} Bg7 {[%emt 0:00:00]} 6. Be3 {[%emt 0:00:07]} Nf6 {[%emt 0:00:00]} 7. Bc4 {[%emt 0:00:12]} O-O {[%emt 0:00:13]} 8. Bb3 {[%emt 0:00:12]} Re8 {[%emt 0:00:36]} 9. O-O {[%emt 0:01:49]} d6 {[%emt 0:07:01]} 10. h3 {[%emt 0:00:36]} Na5 {[%emt 0:00:28]} 11. Qd3 {[%emt 0:12:09]} a6 {[%emt 0:09:25]} 12. f4 {[%emt 0:06:56]} e5 {[%emt 0:21:17]} 13. Nde2 {[%emt 0:09:12]} Nxb3 {[%emt 0:01:28]} 14. axb3 {[%emt 0:00:27]} exf4 {[%emt 0:09:23]} 15. Bxf4 {[%emt 0:32:55]} d5 {[%emt 0:01:14]} 16. exd5 {[%emt 0:02:22]} b5 {[%emt 0:07:09]} 17. b4 {[%emt 0:03:34]} Bb7 {[%emt 0:15:14]} 18. Rad1 {[%emt 0:02:37]} Nxd5 {[%emt 0:01:54]} 19. Nxd5 {[%emt 0:00:21]} Qxd5 {[%emt 0:00:16]} 20. Qxd5 {[%emt 0:01:38]} Bxd5 {[%emt 0:00:03]} 21. Nd4 {[%emt 0:01:38]} Bc4 {[%emt 0:05:14]} 22. Rf2 {[%emt 0:00:53]} Rad8 {[%emt 0:05:23]} 23. c3 {[%emt 0:00:14]} Re4 {[%emt 0:00:04]} 24. Bg5 {[%emt 0:08:47]} Rd5 {[%emt 0:03:18]} 25. Bf6 {[%emt 0:01:18]} Bh6 26. Ra1 {[%emt 0:02:15]} Be3 {[%emt 0:05:34]} 27. Rxa6 {[%emt 0:00:14]} Re8 {[%emt 0:00:33]} 28. g4 {[%emt 0:01:14]} h5 {[%emt 0:01:09]} 29. Kg2 {[%emt 0:00:47]} hxg4 {[%emt 0:00:05]} 30. hxg4 {[%emt 0:00:14]} Rd7 {[%emt 0:02:27]} 31. b3 {[%emt 0:04:23]} Bd5+ {[%emt 0:01:55]} 32. Kg3 {[%emt 0:00:08]} Bxf2+ {[%emt 0:00:05]} 33. Kxf2 {[%emt 0:00:06]} Rc8 {[%emt 0:02:51]} 34. Rb6 {[%emt 0:03:32]} Rb7 {[%emt 0:01:02]} 35. Rd6 {[%emt 0:02:47]} Be6 {[%emt 0:00:38]} 36. g5 {[%emt 0:01:20]} Kf8 {[%emt 0:00:13]} 37. Ke2 {[%emt 0:01:31]} Bg4+ {[%emt 0:01:27]} 38. Kd3 {[%emt 0:01:05]} Re8 {[%emt 0:00:41]} 39. Ra6 {[%emt 0:00:37]} Rc8 {[%emt 0:00:35]} 40. Ra5 {[%emt 0:00:00]} Re8 {[%emt 0:00:00]} 41. Kd2 {[%emt 0:05:20]} Bd7 {[%emt 0:01:31]} 42. Ra6 {[%emt 0:02:35]} Re4 {[%emt 0:06:57]} 43. Nf3 {[%emt 0:03:12]} Re8 {[%emt 0:05:15]} 44. Ne5 {[%emt 0:02:20]} Be6 {[%emt 0:01:28]} 45. Kc2 {[%emt 0:01:31]} Rc7 {[%emt 0:04:03]} 46. Kb2 {[%emt 0:01:19]} Bd5 {[%emt 0:00:58]} 47. Rd6 {[%emt 0:00:52]} Bg2 {[%emt 0:08:13]} 48. Rd2 {[%emt 0:02:52]} Ra8 {[%emt 0:00:57]} 49. Rxg2 {[%emt 0:00:15]} Rca7 {[%emt 0:00:01]} 50. Rd2 {[%emt 0:00:18]} Ra2+ {[%emt 0:01:51]} 51. Kc1 {[%emt 0:00:07]} Ra1+ {[%emt 0:00:16]} 52. Kc2 {[%emt 0:00:05]} Re1 {[%emt 0:00:21]} 53. Nd3 {[%emt 0:03:11]} Rh1 {[%emt 0:00:54]} 54. c4 {[%emt 0:00:16]} bxc4 {[%emt 0:00:06]} 55. bxc4 {[%emt 0:00:05]} Ke8 {[%emt 0:00:22]} 56. Nb2 {[%emt 0:00:16]} Rh4 {[%emt 0:00:46]} 57. b5 {[%emt 0:00:25]} Rf4 {[%emt 0:00:23]} 58. Kb3 {[%emt 0:00:22]} Rf3+ {[%emt 0:00:14]} 59. Kb4 {[%emt 0:00:07]} Rf4 {[%emt 0:00:12]} 60. b6 {[%emt 0:00:32]} Rb8 {[%emt 0:00:11]} 61. Kb5 {[%emt 0:00:44]} Rf3 {[%emt 0:00:43]} 62. Nd3 {[%emt 0:00:20]} Rh3 {[%emt 0:00:57]} 63. Nb4 {[%emt 0:00:16]} 1-0

[Event "5th EKA IIFL Investment 2019"]
[Site "Mumbai"]
[Date "2020.01.03"]
[Round "5.37"]
[White "Thanki, Hemal Karsanji"]
[Black "Ameir, Moheb"]
[Result "0-1"]
[ECO "B31"]
[WhiteElo "2164"]
[BlackElo "2342"]
[Annotator "ChessBase"]
[PlyCount "82"]
[EventDate "2019.12.30"]
[EventType "swiss"]
[EventCountry "IND"]
[SourceTitle "playchess.com"]
[Source "ChessBase"]
[SourceQuality "1"]
[TimeControl "40/5400+30:1800+30"]

1. e4 {[%emt 0:00:00]} c5 {[%emt 0:00:46]} 2. Nf3 {[%emt 0:00:59]} Nc6 {[%emt 0:00:08]} 3. Bb5 {[%emt 0:01:51]} g6 {[%emt 0:00:08]} 4. Bxc6 {[%emt 0:00:07]} dxc6 {[%emt 0:00:05]} 5. d3 {[%emt 0:00:06]} Bg7 {[%emt 0:00:05]} 6. h3 {[%emt 0:00:40]} Nh6 {[%emt 0:00:27]} 7. O-O {[%emt 0:02:06]} f6 {[%emt 0:04:27]} 8. e5 {[%emt 0:04:50]} O-O {[%emt 0:00:36]} 9. Re1 {[%emt 0:00:55]} Nf7 {[%emt 0:02:24]} 10. Nc3 {[%emt 0:03:48]} Qc7 {[%emt 0:12:24]} 11. a4 {[%emt 0:07:10]} f5 {[%emt 0:02:35]} 12. Qe2 {[%emt 0:03:15]} h6 {[%emt 0:06:17]} 13. h4 {[%emt 0:07:16]} b6 {[%emt 0:11:50]} 14. a5 {[%emt 0:06:48]} Rb8 {[%emt 0:04:03]} 15. axb6 {[%emt 0:07:35]} axb6 {[%emt 0:00:12]} 16. Bf4 {[%emt 0:00:06]} e6 {[%emt 0:02:42]} 17. Qe3 {[%emt 0:06:23]} Bb7 {[%emt 0:03:44]} 18. Na4 {[%emt 0:01:56]} Ra8 {[%emt 0:01:01]} 19. b4 {[%emt 0:14:35]} cxb4 {[%emt 0:02:03]} 20. Nxb6 {[%emt 0:07:27]} Rxa1 {[%emt 0:00:52]} 21. Rxa1 {[%emt 0:00:02]} c5 {[%emt 0:04:03]} 22. Nc4 {[%emt 0:02:49]} Ra8 {[%emt 0:05:21]} 23. Rxa8+ {[%emt 0:00:37]} Bxa8 {[%emt 0:00:08]} 24. Nd6 {[%emt 0:06:00]} Bxf3 {[%emt 0:04:38]} 25. Nxf7 {[%emt 0:11:41]} Kxf7 {[%emt 0:05:24]} 26. Qxf3 {[%emt 0:00:01]} Bf8 {[%emt 0:05:48]} 27. Qe3 {[%emt 0:01:46]} h5 {[%emt 0:01:09]} 28. g3 {[%emt 0:01:12]} Qa7 {[%emt 0:02:23]} 29. Qc1 {[%emt 0:01:35]} Qa3 {[%emt 0:01:41]} 30. Qb1 {[%emt 0:00:41]} Bg7 {[%emt 0:03:08]} 31. Kg2 {[%emt 0:00:01]} Qa8+ {[%emt 0:00:36]} 32. f3 {[%emt 0:00:24]} Qd5 {[%emt 0:02:06]} 33. Qb3 {[%emt 0:00:56]} Qd4 {[%emt 0:03:04]} 34. Qa4 {[%emt 0:00:30]} Qd5 {[%emt 0:02:38]} 35. Qa7+ {[%emt 0:00:14]} Kg8 {[%emt 0:00:13]} 36. Qb8+ {[%emt 0:00:13]} Kh7 {[%emt 0:00:18]} 37. Qd6 {[%emt 0:00:43]} Qa2 {[%emt 0:00:19]} 38. Kh3 {[%emt 0:01:09]} Qb1 {[%emt 0:00:44]} 39. g4 {[%emt 0:00:19]} Qh1+ {[%emt 0:00:29]} 40. Kg3 {[%emt 0:00:00]} Qg1+ {[%emt 0:00:00]} 41. Kh3 {[%emt 0:00:43]} fxg4+ {[%emt 0:00:03]} 0-1

[Event "5th EKA IIFL Investment 2019"]
[Site "Mumbai"]
[Date "2020.01.03"]
[Round "5.41"]
[White "Tarini Goyal"]
[Black "Pranav, Anand"]
[Result "0-1"]
[ECO "D38"]
[WhiteElo "2098"]
[BlackElo "2309"]
[Annotator "ChessBase"]
[PlyCount "133"]
[EventDate "2019.12.30"]
[EventType "swiss"]
[EventCountry "IND"]
[SourceTitle "playchess.com"]
[Source "ChessBase"]
[SourceQuality "1"]
[TimeControl "40/5400+30:1800+30"]

1. d4 {[%emt 0:00:00]} Nf6 {[%emt 0:00:00]} 2. c4 {[%emt 0:00:00]} e6 {[%emt 0:00:03]} 3. Nf3 {[%emt 0:00:25]} d5 {[%emt 0:00:11]} 4. Nc3 {[%emt 0:00:23]} Bb4 {[%emt 0:00:08]} 5. g3 {[%emt 0:00:13]} O-O 6. Bg2 {[%emt 0:00:32]} dxc4 {[%emt 0:01:43]} 7. O-O {[%emt 0:00:18]} Nc6 {[%emt 0:04:46]} 8. Qa4 {[%emt 0:02:57]} Nd5 {[%emt 0:01:00]} 9. Qc2 {[%emt 0:00:22]} Be7 {[%emt 0:00:20]} 10. Rd1 {[%emt 0:00:22]} Rb8 {[%emt 0:08:54]} 11. e4 {[%emt 0:00:31]} Ndb4 {[%emt 0:01:13]} 12. Qe2 {[%emt 0:00:34]} Nd3 {[%emt 0:06:55]} 13. Be3 {[%emt 0:00:22]} b5 {[%emt 0:06:04]} 14. b3 {[%emt 0:02:41]} a6 {[%emt 0:07:23]} 15. a4 {[%emt 0:16:28]} Na5 {[%emt 0:17:34]} 16. axb5 {[%emt 0:11:51]} Nxb3 {[%emt 0:01:07]} 17. Rab1 {[%emt 0:00:09]} Nb4 {[%emt 0:00:38]} 18. Bf4 {[%emt 0:24:50]} axb5 {[%emt 0:15:20]} 19. Nxb5 {[%emt 0:00:47]} Rxb5 {[%emt 0:00:15]} 20. Qxc4 {[%emt 0:05:51]} Ba6 {[%emt 0:00:37]} 21. Qxb3 {[%emt 0:05:14]} Nd5 {[%emt 0:07:34]} 22. Qc2 {[%emt 0:01:15]} Rxb1 {[%emt 0:03:04]} 23. Rxb1 {[%emt 0:01:00]} Nxf4 {[%emt 0:01:06]} 24. gxf4 {[%emt 0:00:07]} Qd6 {[%emt 0:04:48]} 25. e5 {[%emt 0:04:57]} Qd7 {[%emt 0:00:49]} 26. Rc1 {[%emt 0:03:36]} c6 {[%emt 0:02:54]} 27. Qc3 {[%emt 0:11:35]} Rc8 {[%emt 0:01:20]} 28. Nd2 {[%emt 0:03:17]} Bb5 {[%emt 0:05:51]} 29. Nb3 {[%emt 0:00:43]} g6 {[%emt 0:00:30]} 30. d5 {[%emt 0:02:35]} Ba3 {[%emt 0:02:20]} 31. dxc6 {[%emt 0:00:30]} Bxc6 {[%emt 0:00:28]} 32. Nc5 {[%emt 0:00:50]} Bxc5 {[%emt 0:00:33]} 33. Qxc5 {[%emt 0:00:06]} Bb7 {[%emt 0:00:03]} 34. Qe3 {[%emt 0:00:26]} Rd8 {[%emt 0:00:22]} 35. Bxb7 {[%emt 0:00:52]} Qxb7 {[%emt 0:00:01]} 36. Re1 {[%emt 0:00:47]} Qb4 {[%emt 0:00:20]} 37. Kg2 Rd4 {[%emt 0:00:08]} 38. Rb1 {[%emt 0:00:59]} Qa4 {[%emt 0:00:31]} 39. Kg3 {[%emt 0:00:25]} Qc4 {[%emt 0:00:20]} 40. Rc1 {[%emt 0:00:00]} Qd5 {[%emt 0:00:00]} 41. Rc3 {[%emt 0:09:05]} Kg7 {[%emt 0:10:25]} 42. Qf3 {[%emt 0:10:50]} Qb5 {[%emt 0:03:48]} 43. Qg4 {[%emt 0:04:06]} h6 {[%emt 0:03:22]} 44. h4 {[%emt 0:02:13]} Qf1 {[%emt 0:01:54]} 45. Qf3 {[%emt 0:00:10]} h5 {[%emt 0:02:51]} 46. Qg2 {[%emt 0:02:09]} Qxg2+ {[%emt 0:01:26]} 47. Kxg2 {[%emt 0:00:08]} Rxf4 {[%emt 0:00:03]} 48. Kg3 {[%emt 0:00:39]} Rg4+ {[%emt 0:00:05]} 49. Kh3 {[%emt 0:00:11]} g5 {[%emt 0:00:17]} 50. hxg5 {[%emt 0:00:47]} Rxg5 {[%emt 0:00:09]} 51. Re3 {[%emt 0:02:24]} Kg6 {[%emt 0:00:18]} 52. Re4 {[%emt 0:01:32]} Kf5 {[%emt 0:02:42]} 53. f3 {[%emt 0:00:09]} Rg1 {[%emt 0:01:03]} 54. Kh4 {[%emt 0:02:34]} Kg6 {[%emt 0:02:02]} 55. Rf4 {[%emt 0:00:45]} Rh1+ {[%emt 0:01:19]} 56. Kg3 {[%emt 0:00:03]} Re1 {[%emt 0:00:06]} 57. Rf6+ {[%emt 0:00:12]} Kg7 {[%emt 0:00:04]} 58. f4 {[%emt 0:00:56]} Rg1+ {[%emt 0:00:11]} 59. Kh4 {[%emt 0:00:07]} Rg6 {[%emt 0:00:30]} 60. Kxh5 {[%emt 0:00:36]} Rxf6 {[%emt 0:00:05]} 61. exf6+ {[%emt 0:00:13]} Kxf6 {[%emt 0:00:45]} 62. Kg4 {[%emt 0:00:04]} Kg6 {[%emt 0:00:04]} 63. Kg3 {[%emt 0:00:24]} Kf5 {[%emt 0:00:05]} 64. Kf3 {[%emt 0:00:02]} f6 {[%emt 0:00:16]} 65. Ke3 {[%emt 0:00:37]} Kg4 {[%emt 0:00:08]} 66. Ke4 {[%emt 0:00:06]} f5+ {[%emt 0:00:05]} 67. Kd4 0-1

[Event "5th EKA IIFL Investment 2019"]
[Site "Mumbai"]
[Date "2020.01.03"]
[Round "5.44"]
[White "Kavinda, Akila"]
[Black "Saravana, Krishnan P."]
[Result "0-1"]
[ECO "D12"]
[WhiteElo "2022"]
[BlackElo "2304"]
[Annotator "ChessBase"]
[PlyCount "122"]
[EventDate "2019.12.30"]
[EventType "swiss"]
[EventCountry "IND"]
[SourceTitle "playchess.com"]
[Source "ChessBase"]
[SourceQuality "1"]
[TimeControl "40/5400+30:1800+30"]

1. d4 d5 2. Nf3 Nf6 3. c4 c6 4. e3 Bf5 5. Nc3 e6 6. Nh4 Be4 7. f3 Bg6 8. Qb3 Qb6 9. Nxg6 hxg6 10. Bd2 Nbd7 11. O-O-O Bd6 12. h3 Nh5 13. Bd3 O-O-O 14. Qxb6 axb6 15. cxd5 exd5 16. Kb1 Bc7 17. Bc2 b5 18. Ne2 Rde8 19. Rhe1 Nb6 20. b3 Nf6 21. Nc1 Nbd7 22. Re2 Nf8 23. Bd3 Ne6 24. Be1 Kd7 25. Bf2 Ra8 26. Rc2 Ra3 27. Bf1 Rha8 28. Nd3 Ke8 29. Be1 Bd6 30. Bf2 Kf8 31. Nc1 Nc7 32. g4 Re8 33. Nd3 Nd7 34. Bg2 b4 35. Re2 Nb5 36. Be1 Nxd4 37. Rb2 Nb5 38. Nxb4 Raa8 39. a4 Nc7 40. e4 Be5 41. Ra2 Nf6 42. g5 Nh5 43. exd5 Rad8 44. Bf2 Nf4 45. Bb6 Ncxd5 46. Bxd8 Nc3+ 47. Kc1 Nxd1 48. Bb6 Nc3 49. Rc2 Nce2+ 50. Kb1 Bd4 51. Bxd4 Nxd4 52. Rc4 c5 53. Rxc5 Nxg2 54. Rc7 Nxb3 55. Rxb7 Nc5 56. Rc7 Rb8 57. Rxc5 Rxb4+ 58. Kc2 Rxa4 59. Rc8+ Ke7 60. Rc7+ Ke6 61. Rc6+ Ke5 0-1

[Event "5th EKA IIFL Investment 2019"]
[Site "Mumbai"]
[Date "2020.01.03"]
[Round "5.45"]
[White "Harshad, S."]
[Black "Laddha, Shubh Jayesh"]
[Result "1-0"]
[ECO "C77"]
[WhiteElo "2291"]
[BlackElo "1975"]
[Annotator "RC"]
[PlyCount "87"]
[EventDate "2019.12.30"]
[EventType "swiss"]
[EventCountry "IND"]
[SourceTitle "playchess.com"]
[Source "ChessBase"]
[SourceQuality "1"]
[TimeControl "40/5400+30:1800+30"]

1. e4 {[%emt 0:03:17]} e5 {[%emt 0:00:00]} 2. Nf3 {[%emt 0:00:21]} Nc6 {[%emt 0:00:00]} 3. Bb5 {[%emt 0:00:05]} a6 {[%emt 0:00:00]} 4. Ba4 {[%emt 0:00:05]} Nf6 {[%emt 0:00:00]} 5. d3 {[%emt 0:00:28]} d6 {[%emt 0:00:00]} 6. c3 {[%emt 0:00:06]} g6 {[%emt 0:00:09]} 7. O-O {[%emt 0:00:23]} Bg7 {[%emt 0:05:58]} 8. Re1 {[%emt 0:00:38]} b5 {[%emt 0:00:12]} 9. Bc2 {[%emt 0:01:46]} O-O {[%emt 0:05:15]} 10. a4 {[%emt 0:01:17]} Bb7 {[%emt 0:01:47]} 11. Nbd2 {[%emt 0:00:34]} Nb8 {[%emt 0:02:04]} 12. b4 {[%emt 0:06:33]} Nbd7 {[%emt 0:01:31]} 13. Nb3 {[%emt 0:01:10]} c6 {[%emt 0:11:16]} 14. c4 {[%emt 0:13:38]} d5 {[%emt 0:24:28]} 15. Qe2 {[%emt 0:10:19]} d4 {[%emt 0:08:59]} 16. Bd2 {[%emt 0:07:17]} Re8 {[%emt 0:09:03]} 17. Na5 {[%emt 0:08:43]} Qb6 {[%emt 0:01:50]} 18. c5 {[%emt 0:05:44]} Qc7 {[%emt 0:00:06]} 19. Rf1 {[%emt 0:03:32]} Nf8 {[%emt 0:02:43]} 20. Nh4 {[%emt 0:01:54]} Ne6 {[%emt 0:01:39]} 21. g3 {[%emt 0:00:28]} Rad8 {[%emt 0:04:58]} 22. Nxb7 {[%emt 0:02:55]} Qxb7 {[%emt 0:00:08]} 23. f4 {[%emt 0:02:18]} exf4 {[%emt 0:02:23]} 24. gxf4 {[%emt 0:00:12]} Nf8 {[%emt 0:00:50]} 25. Qg2 {[%emt 0:03:15]} Qd7 {[%emt 0:01:17]} 26. Bd1 {[%emt 0:01:33]} Qe7 {[%emt 0:04:16]} 27. Nf3 {[%emt 0:02:48]} h5 {[%emt 0:02:13]} 28. h3 {[%emt 0:00:55]} Bh6 {[%emt 0:00:32]} 29. Bb3 {[%emt 0:01:10]} Bg7 {[%emt 0:02:52]} 30. Ne5 {[%emt 0:00:48]} Ne6 {[%emt 0:00:59]} 31. Nxc6 {[%emt 0:00:08]} Qc7 {[%emt 0:00:11]} 32. Nxd8 {[%emt 0:00:13]} Rxd8 {[%emt 0:00:17]} 33. axb5 {[%emt 0:00:11]} axb5 {[%emt 0:00:34]} 34. e5 {[%emt 0:00:59]} Nh7 {[%emt 0:00:24]} 35. Bxe6 {[%emt 0:00:59]} fxe6 {[%emt 0:00:05]} 36. Qg4 g5 37. Qxg5 {[%emt 0:01:08]} Kh8 {[%emt 0:00:37]} 38. Qxh5 {[%emt 0:01:13]} Rg8 {[%emt 0:00:05]} 39. Kh2 {[%emt 0:00:13]} Qc6 {[%emt 0:00:33]} 40. Ra7 {[%emt 0:01:40]} Bh6 {[%emt 0:00:08]} 41. Rg1 {[%emt 0:00:48]} Bxf4+ {[%emt 0:02:00]} 42. Bxf4 {[%emt 0:00:33]} Rg2+ {[%emt 0:00:39]} 43. Rxg2 {[%emt 0:00:15]} Qd7 {[%emt 0:00:08]} 44. Ra8+ {[%emt 0:00:37] Qd5} 1-0

[Event "5th EKA IIFL Investment 2019"]
[Site "Mumbai"]
[Date "2020.01.03"]
[Round "5.46"]
[White "Barath Kalyan M"]
[Black "Mohite, Ranveer"]
[Result "1-0"]
[ECO "D37"]
[WhiteElo "2091"]
[BlackElo "2281"]
[Annotator "ChessBase"]
[PlyCount "118"]
[EventDate "2019.12.30"]
[EventType "swiss"]
[EventCountry "IND"]
[SourceTitle "playchess.com"]
[Source "ChessBase"]
[SourceQuality "1"]
[TimeControl "40/5400+30:1800+30"]

1. Nf3 {[%emt 0:00:05]} Nf6 {[%emt 0:01:36]} 2. c4 {[%emt 0:00:08]} e6 {[%emt 0:00:38]} 3. Nc3 {[%emt 0:01:08]} d5 {[%emt 0:02:20]} 4. d4 {[%emt 0:01:46]} Be7 {[%emt 0:00:55]} 5. Bf4 {[%emt 0:00:48]} O-O {[%emt 0:00:44]} 6. e3 {[%emt 0:00:04]} b6 {[%emt 0:03:43]} 7. Qc2 {[%emt 0:03:02]} Bb7 {[%emt 0:03:15]} 8. cxd5 {[%emt 0:00:36]} exd5 {[%emt 0:00:44]} 9. Bd3 {[%emt 0:03:37]} c5 {[%emt 0:04:10]} 10. O-O {[%emt 0:00:45]} Nc6 {[%emt 0:07:47]} 11. a3 {[%emt 0:00:09]} c4 {[%emt 0:01:02]} 12. Bf5 {[%emt 0:01:36]} g6 {[%emt 0:13:20]} 13. Bh3 {[%emt 0:02:57]} Re8 {[%emt 0:04:19]} 14. Nb5 {[%emt 0:03:27]} Rf8 {[%emt 0:00:47]} 15. Bc7 {[%emt 0:06:55]} Qe8 {[%emt 0:00:06]} 16. Nd6 {[%emt 0:07:24]} Bxd6 {[%emt 0:00:17]} 17. Bxd6 {[%emt 0:00:03]} Ne7 {[%emt 0:00:15]} 18. Ne5 {[%emt 0:06:18]} Qd8 {[%emt 0:03:22]} 19. Bb4 {[%emt 0:06:49]} a5 {[%emt 0:03:39]} 20. Be1 {[%emt 0:02:08]} Bc8 {[%emt 0:18:17]} 21. g4 {[%emt 0:00:56]} Ne4 {[%emt 0:01:12]} 22. Bg2 {[%emt 0:15:46]} Nd6 {[%emt 0:00:23]} 23. f4 {[%emt 0:13:17]} Kg7 {[%emt 0:01:13]} 24. f5 {[%emt 0:07:35]} f6 {[%emt 0:00:49]} 25. Nf3 {[%emt 0:03:50]} gxf5 {[%emt 0:06:24]} 26. g5 {[%emt 0:00:08]} fxg5 {[%emt 0:01:13]} 27. Nxg5 {[%emt 0:00:13]} Ng6 {[%emt 0:00:56]} 28. h4 {[%emt 0:00:44]} h6 {[%emt 0:11:25]} 29. Bxd5 {[%emt 0:00:35]} hxg5 {[%emt 0:01:15]} 30. Bxa8 {[%emt 0:00:08]} gxh4 {[%emt 0:02:28]} 31. Qg2 {[%emt 0:00:45]} Be6 {[%emt 0:02:33]} 32. Bf3 {[%emt 0:02:02]} h3 {[%emt 0:01:42]} 33. Qg3 {[%emt 0:00:50]} f4 {[%emt 0:00:45]} 34. exf4 {[%emt 0:00:23]} Nf5 {[%emt 0:00:52]} 35. Qf2 {[%emt 0:03:26]} Bd5 {[%emt 0:00:53]} 36. Bc3 {[%emt 0:02:12]} Ngh4 {[%emt 0:00:35]} 37. Bg4 {[%emt 0:02:05]} Kf7 {[%emt 0:01:17]} 38. Bh5+ {[%emt 0:00:55]} Kf6 {[%emt 0:00:21]} 39. Kh2 {[%emt 0:00:11]} Rg8 {[%emt 0:01:19]} 40. Rg1 {[%emt 0:00:00]} Ng2 {[%emt 0:00:00]} 41. Qe2 {[%emt 0:03:57]} Nfe3 {[%emt 0:04:21]} 42. Bd2 {[%emt 0:01:35]} Qe7 {[%emt 0:09:12]} 43. Bxe3 {[%emt 0:00:14]} Qxe3 {[%emt 0:01:02]} 44. Qxe3 {[%emt 0:00:17]} Nxe3 {[%emt 0:00:05]} 45. Rxg8 {[%emt 0:00:16]} Bxg8 {[%emt 0:00:02]} 46. Kxh3 {[%emt 0:00:23]} b5 {[%emt 0:01:28]} 47. Re1 {[%emt 0:00:55]} Be6+ {[%emt 0:01:12]} 48. Kg3 {[%emt 0:00:07]} Nf5+ {[%emt 0:02:46]} 49. Kf2 {[%emt 0:00:05]} Nxd4 {[%emt 0:00:04]} 50. Rd1 {[%emt 0:00:09]} Nb3 {[%emt 0:00:10]} 51. Rd6 {[%emt 0:00:26]} Nc5 {[%emt 0:02:07]} 52. Ke3 {[%emt 0:00:26]} b4 {[%emt 0:01:29]} 53. axb4 {[%emt 0:00:26]} axb4 {[%emt 0:01:00]} 54. Rc6 {[%emt 0:00:06]} Nb7 {[%emt 0:02:21]} 55. Bg4 {[%emt 0:00:11]} Nd8 {[%emt 0:00:00]} 56. Rb6 {[%emt 0:00:20]} c3 {[%emt 0:00:22]} 57. bxc3 {[%emt 0:00:05]} bxc3 {[%emt 0:00:03]} 58. f5 {[%emt 0:00:07]} c2 {[%emt 0:00:49]} 59. Kd2 {[%emt 0:00:05]} Ke5 {[%emt 0:00:45]} 1-0

[Event "5th EKA IIFL Investment 2019"]
[Site "Mumbai"]
[Date "2020.01.03"]
[Round "5.47"]
[White "Deshpande, Aniruddha"]
[Black "Pandey Srishti"]
[Result "1-0"]
[ECO "E63"]
[WhiteElo "2275"]
[BlackElo "2162"]
[Annotator "ChessBase"]
[PlyCount "78"]
[EventDate "2019.12.30"]
[EventType "swiss"]
[EventCountry "IND"]
[SourceTitle "playchess.com"]
[Source "ChessBase"]
[SourceQuality "1"]
[TimeControl "40/5400+30:1800+30"]

1. d4 Nf6 2. c4 g6 3. g3 Bg7 4. Bg2 O-O 5. Nc3 d6 6. Nf3 Nc6 7. O-O a6 8. Bf4 Rb8 9. Rc1 Bd7 10. Qd2 b5 11. Nd5 bxc4 12. Nxf6+ Bxf6 13. Rxc4 Rb6 14. Rfc1 Qb8 15. b3 Rc8 16. d5 Nd8 17. Bg5 Bxg5 18. Nxg5 f6 19. Nxh7 Nf7 20. Qe3 Re8 21. Rxc7 Rb7 22. Rxd7 Rxd7 23. Bh3 Rb7 24. Be6 Kg7 25. Rc4 Rh8 26. Rh4 Qe8 27. Bxf7 Qxf7 28. Qh6+ Kg8 29. Qc1 Rb8 30. Qc7 Re8 31. Nxf6+ Qxf6 32. Rf4 Qe5 33. Qc2 Kg7 34. Rg4 Qh5 35. Qc3+ Qe5 36. Qd3 Rh6 37. Re4 Qf6 38. Re6 Qa1+ 39. Kg2 Rxh2+ 1-0